fUSD/lending_fUSD_20251024
["ID","MTS","AMOUNT","RATE_DAILY","PERIOD"]
[392264305,1761291054305,-151.0,0.00039185,120]
[392264306,1761291054314,-151.0,0.00039185,120]
[392264307,1761291054323,-151.0,0.00039185,120]
[392264308,1761291054332,-151.0,0.00039185,120]
[392264309,1761291054342,-151.0,0.00039185,120]
[392264310,1761291054351,-151.0,0.00039185,120]
[392264311,1761291054361,-151.0,0.00039185,120]
[392264312,1761291054371,-151.0,0.00039185,120]
[392264313,1761291054380,-151.0,0.00039185,120]
[392264314,1761291054390,-196.382848,0.00039185,120]
[392264315,1761291054401,-163.259379,0.00039185,120]
[392264316,1761291054411,-151.0,0.00039185,120]
[392264317,1761291054421,-151.0,0.00039185,120]
[392264318,1761291054431,-151.0,0.00039185,120]
[392264319,1761291054440,-151.0,0.00039185,120]
[392264320,1761291054450,-151.0,0.00039185,120]
[392264321,1761291054459,-151.0,0.00039185,120]
[392264322,1761291054469,-151.0,0.00039185,30]
[392264323,1761291054479,-151.0,0.00039185,30]
[392264324,1761291054488,-151.0,0.00039185,120]
[392264325,1761291054498,-156.893671,0.00039185,120]
[392264326,1761291054508,-151.0,0.00039185,120]
[392264327,1761291054517,-151.0,0.00039185,30]
[392264328,1761291054526,-176.313072,0.00039185,30]
[392264329,1761291054536,-151.0,0.00039185,120]
[392264330,1761291054545,-151.0,0.00039185,120]
[392264331,1761291054555,-197.474316,0.00039185,120]
[392264332,1761291054564,-197.474316,0.00039185,120]
[392264333,1761291054573,-151.0,0.00039185,120]
[392264334,1761291054582,-151.0,0.00039185,120]
[392264335,1761291054592,-197.474316,0.00039185,120]
[392264336,1761291054601,-151.0,0.00039185,120]
[392264337,1761291054610,-197.474316,0.00039185,120]
[392264338,1761291054619,-239.256457,0.00039185,120]
[392264339,1761291054629,-151.0,0.00039185,120]
[392264340,1761291054638,-151.0,0.00039185,120]
[392264341,1761291054647,-151.0,0.00039185,120]
[392264342,1761291054656,-197.474316,0.00039185,120]
[392264343,1761291054665,-197.474316,0.00039185,120]
[392264344,1761291054675,-151.0,0.00039185,120]
[392264345,1761291054684,-151.0,0.00039185,120]
[392264346,1761291054693,-197.474316,0.00039185,120]
[392264347,1761291054702,-197.474317,0.00039185,120]
[392264348,1761291054711,-567.151357,0.00039185,120]
[392264349,1761291054720,-567.151357,0.00039185,120]
[392264350,1761291054729,-567.151357,0.00039185,120]
[392264351,1761291054738,-567.151357,0.00039185,120]
[392264352,1761291054747,-312.995953,0.00039185,120]
[392264353,1761291054755,-312.995953,0.00039185,120]
[392264354,1761291054764,-151.0,0.00039185,120]
[392264355,1761291054773,-151.0,0.00039185,120]
[392264356,1761291054782,-567.151357,0.00039185,120]
[392264357,1761291054791,-312.995953,0.00039185,120]
[392264358,1761291054800,-567.151357,0.00039185,120]
[392264359,1761291054809,-312.995953,0.00039185,120]
[392264360,1761291054817,-151.0,0.00039185,120]
[392264361,1761291054826,-151.0,0.00039185,120]
[392264362,1761291054835,-151.0,0.00039185,120]
[392264363,1761291054844,-151.0,0.00039185,120]
[392264364,1761291054853,-567.151357,0.00039185,120]
[392264365,1761291054862,-312.995953,0.00039185,120]
[392264366,1761291054871,-312.995953,0.00039185,120]
[392264367,1761291054880,-567.151361,0.00039185,120]
[392264368,1761291054890,-312.995953,0.00039185,120]
[392264369,1761291054899,-151.0,0.00039185,120]
[392264370,1761291054908,-312.995958,0.00039185,120]
[392264371,1761291054917,-151.0,0.00039185,120]
[392264372,1761291054932,-151.0,0.00039185,120]
[392264373,1761291054941,-267.574291,0.00039185,120]
[392264374,1761291054950,-157.192835,0.00039185,120]
[392264375,1761291054959,-154.082865,0.00039185,120]
[392264376,1761291054970,-1360.39369,0.00039185,120]
[392264377,1761291054980,-1360.39369,0.00039185,120]
[392264378,1761291054989,-1360.39369,0.00039185,120]
[392264379,1761291054999,-1360.39369,0.00039185,120]
[392264380,1761291055008,-1360.39369,0.00039185,120]
[392264381,1761291055017,-1360.39369,0.00039185,120]
[392264382,1761291055027,-1360.39369,0.00039185,120]
[392264383,1761291055036,-1360.39369,0.00039185,120]
[392264384,1761291055046,-107651.917305,0.00039185,3]
[392264385,1761291055056,-354.4805485,0.00039185,2]
[392264386,1761291055066,-500.0,0.00039194,30]
[392264387,1761291055075,-500.0,0.00039194,30]
[392264388,1761291055084,-500.0,0.00039194,30]
[392264389,1761291055093,-381.04653017,0.00039194,30]
[392264390,1761291055103,-500.0,0.00039194,2]
[392264391,1761291055112,-32661.5402711,0.00039195,2]
[392264392,1761291055121,-93845.7370227,0.00039195,2]
[392264393,1761291055131,-3012.3510662,0.00039195,2]
[392264394,1761291055141,-3036.7280201,0.00039195,2]
[392264395,1761291055151,-151.0,0.00039195,15]
[392264396,1761291055160,-151.0,0.00039195,15]
[392264397,1761291055170,-158.103627,0.00039195,120]
[392264398,1761291055180,-151.0,0.00039195,120]
[392264399,1761291055190,-151.0,0.00039195,120]
[392264400,1761291055201,-151.0,0.00039195,120]
[392264401,1761291055210,-151.0,0.00039195,120]
[392264402,1761291055220,-151.0,0.00039195,120]
[392264403,1761291055230,-217.36029,0.00039195,120]
[392264404,1761291055239,-151.0,0.00039195,120]
[392264405,1761291055248,-165.125085,0.00039195,120]
[392264406,1761291055258,-217.36029,0.00039195,120]
[392264407,1761291055267,-217.36029,0.00039195,120]
[392264408,1761291055276,-155.145885,0.00039195,120]
[392264409,1761291055286,-151.50833,0.00039195,120]
[392264410,1761291055296,-217.36029,0.00039195,120]
[392264411,1761291055305,-151.0,0.00039195,120]
[392264412,1761291055315,-151.0,0.00039195,120]
[392264413,1761291055325,-151.0,0.00039195,120]
[392264414,1761291055334,-151.0,0.00039195,120]
[392264415,1761291055343,-151.0,0.00039195,120]
[392264416,1761291055353,-644.143788,0.00039195,120]
[392264417,1761291055364,-644.143788,0.00039195,120]
[392264418,1761291055373,-151.0,0.00039195,120]
[392264419,1761291055383,-644.143788,0.00039195,120]
[392264420,1761291055392,-644.143788,0.00039195,120]
[392264421,1761291055401,-155.033829,0.00039195,120]
[392264422,1761291055411,-151.552995,0.00039195,120]
[392264423,1761291055420,-151.0,0.00039195,120]
[392264424,1761291055429,-151.0,0.00039195,120]
[392264425,1761291055438,-156.912725,0.00039195,120]
[392264426,1761291055447,-151.0,0.00039195,120]
[392264427,1761291055457,-151.0,0.00039195,120]
[392264428,1761291055466,-342.31,0.00039195,30]
[392264429,1761291055476,-151.0,0.00039195,120]
[392264430,1761291055485,-151.0,0.00039195,120]
[392264431,1761291055495,-151.0,0.00039195,120]
[392264432,1761291055504,-151.0,0.00039195,120]
[392264433,1761291055513,-151.0,0.00039195,120]
[392264434,1761291055524,-151.0,0.00039195,120]
[392264435,1761291055537,-152.462164,0.00039195,30]
[392264436,1761291055547,-151.0,0.00039195,120]
[392264437,1761291055558,-155.131771,0.00039195,120]
[392264438,1761291055567,-208.521631,0.00039195,120]
[392264439,1761291055576,-208.521631,0.00039195,120]
[392264440,1761291055586,-151.0,0.00039195,120]
[392264441,1761291055595,-208.521631,0.00039195,120]
[392264442,1761291055604,-152.250255,0.00039195,120]
[392264443,1761291055613,-208.521631,0.00039195,120]
[392264444,1761291055623,-329.146834,0.00039195,120]
[392264445,1761291055632,-329.146834,0.00039195,120]
[392264446,1761291055641,-329.146834,0.00039195,120]
[392264447,1761291055650,-329.146834,0.00039195,120]
[392264448,1761291055659,-183.538171,0.00039195,120]
[392264449,1761291055668,-151.0,0.00039195,120]
[392264450,1761291055677,-153.777603,0.00039195,120]
[392264451,1761291055686,-151.0,0.00039195,120]
[392264452,1761291055695,-155.773991,0.00039195,120]
[392264453,1761291055704,-207.025725,0.00039195,120]
[392264454,1761291055713,-207.025725,0.00039195,120]
[392264455,1761291055724,-207.025725,0.00039195,120]
[392264456,1761291055734,-207.025725,0.00039195,120]
[392264457,1761291055744,-151.0,0.00039195,60]
[392264458,1761291055753,-151.0,0.00039195,120]
[392264459,1761291055762,-151.0,0.00039195,120]
[392264460,1761291055773,-151.0,0.00039195,120]
[392264461,1761291055782,-151.0,0.00039195,120]
[392264462,1761291055791,-151.0,0.00039195,120]
[392264463,1761291055801,-151.0,0.00039195,120]
[392264464,1761291055811,-151.0,0.00039195,120]
[392264465,1761291055821,-151.0,0.00039195,120]
[392264466,1761291055832,-151.0,0.00039195,120]
[392264467,1761291055842,-151.0,0.00039195,120]
[392264468,1761291055852,-151.0,0.00039195,120]
[392264469,1761291055862,-151.0,0.00039195,120]
[392264470,1761291055871,-159.507872,0.00039195,120]
[392264471,1761291055881,-1038.708301,0.00039195,120]
[392264472,1761291055890,-151.0,0.00039195,120]
[392264473,1761291055900,-1038.708301,0.00039195,120]
[392264474,1761291055909,-151.0,0.00039195,120]
[392264475,1761291055920,-1038.708301,0.00039195,120]
[392264476,1761291055933,-151.0,0.00039195,120]
[392264477,1761291055943,-1038.708301,0.00039195,120]
[392264478,1761291055952,-197.963941,0.00039195,120]
[392264479,1761291055963,-1030.438365,0.00039195,120]
[392264480,1761291055973,-4042.785528,0.00039195,120]
[392264481,1761291055984,-1030.438365,0.00039195,120]
[392264482,1761291055994,-151.0,0.00039195,120]
[392264483,1761291056007,-1030.438365,0.00039195,120]
[392264484,1761291056016,-151.0,0.00039195,120]
[392264485,1761291056025,-151.0,0.00039195,30]
[392264486,1761291056035,-4042.785528,0.00039195,120]
[392264487,1761291056044,-151.0,0.00039195,120]
[392264488,1761291056053,-1030.438365,0.00039195,120]
[392264489,1761291056063,-4042.785528,0.00039195,120]
[392264490,1761291056073,-251.968229,0.00039195,120]
[392264491,1761291056083,-151.0,0.00039195,120]
[392264492,1761291056092,-4042.785528,0.00039195,120]
[392264493,1761291056102,-251.968229,0.00039195,120]
[392264494,1761291056111,-251.968229,0.00039195,120]
[392264495,1761291056120,-251.968229,0.00039195,120]
[392264496,1761291056130,-151.0,0.00039195,120]
[392264497,1761291056139,-151.0,0.00039195,120]
[392264498,1761291056149,-151.0,0.00039195,120]
[392264499,1761291056159,-252.677834,0.00039195,120]
[392264500,1761291056169,-151.0,0.00039195,120]
[392264501,1761291056179,-151.0,0.00039195,120]
[392264502,1761291056188,-154.660459,0.00039195,120]
[392264503,1761291056197,-151.0,0.00039195,120]
[392264504,1761291056207,-154.155111,0.00039195,120]
[392264505,1761291056216,-681.95798513,0.00039228,2]
[392264506,1761291056225,-1425.0,0.00039234,2]
[392264507,1761291056236,-191.0,0.00039242,2]
[392264508,1761291056247,-15378.8453294,0.00039262,3]
[392264509,1761291056257,-794.0,0.00039271,2]
[392264510,1761291056266,-1030.438365,0.00039272,120]
[392264511,1761291056275,-4042.785528,0.00039272,120]
[392264512,1761291056286,-1030.438365,0.00039272,120]
[392264513,1761291056295,-151.0,0.00039272,120]
[392264514,1761291056305,-1030.438365,0.00039272,120]
[392264515,1761291056315,-152.920773,0.00039272,30]
[392264516,1761291056325,-151.0,0.00039272,120]
[392264517,1761291056335,-4042.785528,0.00039272,120]
[392264518,1761291056344,-153.583726,0.00039272,120]
[392264519,1761291056354,-1030.438358,0.00039272,120]
[392264520,1761291056364,-1375.46786598,0.00039272,120]
[392264521,1761291056397,-7864.270147,0.00038367,120]
[392264522,1761291056407,-2667.31766202,0.00039272,120]
[392264523,1761291056417,-251.968229,0.00039272,120]
[392264524,1761291056428,-151.0,0.00039272,120]
[392264525,1761291056438,-4042.785529,0.00039272,120]
[392264526,1761291056447,-251.968229,0.00039272,120]
[392264527,1761291056457,-251.968229,0.00039272,120]
[392264528,1761291056466,-251.968229,0.00039272,120]
[392264529,1761291056476,-299.870817,0.00039272,120]
[392264530,1761291056484,-151.0,0.00039272,120]
[392264531,1761291056494,-151.0,0.00039272,120]
[392264532,1761291056504,-151.0,0.00039272,120]
[392264533,1761291056514,-151.0,0.00039272,120]
[392264534,1761291056523,-587.13992638,0.00039272,2]
[392264535,1761291056533,-150.0,0.00039276,7]
[392264536,1761291056542,-150.0,0.00039276,7]
[392264537,1761291056552,-150.0,0.0003936,7]
[392264538,1761291056563,-794.0,0.00039362,2]
[392264539,1761291056574,-418.84,0.00039365,2]
[392264540,1761291056583,-1961.75208018,0.00039375,5]
[392264541,1761291056593,-250.0,0.00039379,2]
[392264542,1761291056604,-1681.83156298,0.0003938,2]
[392264543,1761291057416,-340.00318194,0.000349,2]
[392264544,1761291057428,-3396.622335,0.000349,2]
[392264545,1761291057440,-285.29577522,0.000349,2]
[392264546,1761291061064,-160.77160371,0.00017999,2]
[392264547,1761291087663,-57.23891337,0.00017999,2]
[392264548,1761291087690,-96.27716159,0.00017999,2]
[392264550,1761291098728,-336.63667076,0.00017999,2]
[392264551,1761291103073,-67.78276257,0.00017999,2]
[392264552,1761291103100,-182.50114052,0.00017999,2]
[392264553,1761291104850,-187.06695935,0.00017999,2]
[392264554,1761291109325,-130.43190013,0.00017999,2]
[392264555,1761291109351,-91.24579596,0.00017999,2]
[392264556,1761291110898,-245.2372681,0.00017999,2]
[392264557,1761291112433,-163.51693594,0.00017999,2]
[392264558,1761291112460,-77.47960447,0.00017999,2]
[392264562,1761291132635,-189.0,0.00017998,2]
[392264564,1761291135291,-111.0,0.00017998,2]
[392264565,1761291135316,-101.25193089,0.00017999,2]
[392264567,1761291141463,-270.00676066,0.00017999,2]
[392264568,1761291143488,-51.26170398,0.00017999,2]
[392264569,1761291143519,-129.88455576,0.00017999,2]
[392264570,1761291145496,-358.72584431,0.00017999,2]
[392264571,1761291151448,-11.38959993,0.00017999,2]
[392264572,1761291151474,-301.70172265,0.00017999,2]
[392264575,1761291157795,-240.14919522,0.00017998,2]
[392264577,1761291161504,-170.85080478,0.00017998,2]
[392264703,1761291408345,1206.49402383,0.00027397,120]
[392264713,1761291520556,436.95,0.00027,120]
[392264731,1761291819088,190.73,0.00016712,2]
[392264733,1761291876849,150.0,0.00024,3]
[392264749,1761292153096,-220.0,0.0002388,2]
[392264750,1761292153117,-500.0,0.00024932,2]
[392264751,1761292153137,-269.47091472,0.00027425,120]
[392264760,1761292232425,-300.0,0.00029162,120]
[392264761,1761292232435,-206.14406425,0.00030167,120]
[392264762,1761292232463,-93.85593575,0.00030167,120]
[392264763,1761292232471,-183.0,0.000306,5]
[392264764,1761292232481,-300.0,0.00030708,120]
[392264765,1761292232491,-300.0,0.00030708,120]
[392264766,1761292232500,-300.0,0.00030708,120]
[392264767,1761292232510,-400.0,0.00031738,2]
[392264768,1761292232519,-300.0,0.00031739,2]
[392264769,1761292232529,-500.0,0.00031739,2]
[392264770,1761292232539,-500.0,0.00031739,2]
[392264771,1761292232548,-500.0,0.00031739,2]
[392264772,1761292232557,-500.0,0.00031739,2]
[392264773,1761292232567,-500.0,0.00031739,2]
[392264774,1761292232577,-500.0,0.00031739,2]
[392264775,1761292232588,-500.0,0.00031739,2]
[392264776,1761292232599,-500.0,0.00031739,2]
[392264777,1761292232609,-500.0,0.00031739,2]
[392264778,1761292232622,-500.0,0.00031739,2]
[392264779,1761292232631,-500.0,0.00031739,2]
[392264780,1761292232640,-500.0,0.00031739,2]
[392264781,1761292232650,-213.64695083,0.00031739,2]
[392264782,1761292232660,-500.0,0.00031739,2]
[392264783,1761292232669,-269.25,0.00032156,2]
[392264784,1761292232678,-460.0,0.00034145,2]
[392264785,1761292232689,-1000.0,0.000348,2]
[392264786,1761292232699,-500.0,0.00034999,30]
[392264787,1761292232708,-500.0,0.00034999,30]
[392264788,1761292232717,-500.0,0.00034999,30]
[392264789,1761292232727,-166.66,0.00035058,30]
[392264791,1761292232736,-150.0,0.00035471,2]
[392264793,1761292232746,-356.71466549,0.00035471,2]
[392264795,1761292232755,-666.0,0.00035707,3]
[392264797,1761292232764,-166.66,0.00035797,30]
[392264799,1761292232774,-287.75,0.00035899,2]
[392264800,1761292232783,-372.03,0.00036487,120]
[392264802,1761292232792,-166.66,0.00036535,30]
[392264804,1761292232802,-161.01,0.00036604,120]
[392264806,1761292232811,-1000.0,0.00036631,2]
[392264807,1761292232820,-150.0,0.00036633,2]
[392264808,1761292232830,-200.0,0.00036714,2]
[392264809,1761292232841,-273.85,0.00036742,14]
[392264810,1761292232850,-354.062,0.00036742,46]
[392264811,1761292232859,-500.0,0.00036742,30]
[392264812,1761292232868,-500.0,0.00036742,30]
[392264813,1761292232878,-500.0,0.00036742,30]
[392264814,1761292232887,-500.0,0.00036742,30]
[392264815,1761292232896,-500.0,0.00036742,30]
[392264816,1761292232905,-500.0,0.00036742,30]
[392264817,1761292232914,-500.0,0.00036742,30]
[392264818,1761292232923,-213.12025969,0.00036742,30]
[392264819,1761292232932,-500.0,0.00036742,30]
[392264820,1761292232941,-502.58030001,0.00036742,30]
[392264821,1761292232950,-2483.28577645,0.00036768,30]
[392264822,1761292232962,-7560.19422355,0.00036768,30]
[392264823,1761292232971,-150.0,0.00036768,120]
[392264824,1761292232980,-4189.42,0.00036816,2]
[392264825,1761292232989,-1000.0,0.00036819,2]
[392264826,1761292232998,-1398.48,0.00036839,2]
[392264827,1761292233008,-160.61,0.00036883,2]
[392264828,1761292233018,-150.0,0.00036962,7]
[392264829,1761292233027,-150.0,0.00036962,7]
[392264830,1761292233037,-150.0,0.00036962,7]
[392264831,1761292233046,-150.0,0.00036962,7]
[392264832,1761292233056,-150.0,0.00036962,7]
[392264833,1761292233065,-150.0,0.00036962,7]
[392264834,1761292233075,-150.0,0.00036962,7]
[392264835,1761292233085,-150.0,0.00036962,7]
[392264836,1761292233095,-150.0,0.00036962,7]
[392264837,1761292233106,-150.0,0.00036962,7]
[392264838,1761292233115,-150.0,0.00036962,7]
[392264839,1761292233125,-3118.0,0.00036964,2]
[392264840,1761292233134,-473.90737297,0.00036967,2]
[392264841,1761292233143,-273.85,0.00037016,14]
[392264842,1761292233153,-150.99,0.00037067,2]
[392264843,1761292233161,-7472.75291017,0.00037067,2]
[392264844,1761292233173,-260.1217766,0.00037067,2]
[392264845,1761292233191,-1800.0,0.00037067,2]
[392264846,1761292233202,-159.38531323,0.00037067,2]
[392264847,1761292233211,-6238.33,0.00037067,2]
[392264848,1761292233221,-813.28468677,0.00037067,2]
[392264849,1761292233231,-43.09531323,0.00037067,2]
[392264850,1761292233241,-7602.97665887,0.00037067,2]
[392264851,1761292233252,-852.68973297,0.00037067,2]
[392264852,1761292233263,-522.04790989,0.00037067,2]
[392264853,1761292238386,-500.0,0.00031738,2]
[392264854,1761292238399,-245.96077231,0.00031738,2]
[392264855,1761292238411,-1022.27569827,0.00037067,2]
[392264856,1761292238423,-1518.13938478,0.00037067,2]
[392264857,1761292238444,-1026.5102307,0.00037067,2]
[392264859,1761292238459,-4478.09131457,0.00037067,2]
[392264861,1761292238473,-5136.34906995,0.00037067,2]
[392264862,1761292238484,-4669.72258982,0.00037067,2]
[392264863,1761292238498,-1500.023625,0.00037067,2]
[392264926,1761292240846,-500.0,0.0003696,15]
[392264927,1761292240859,-346.38643147,0.0003696,15]
[392264928,1761292240872,-240.9796603,0.0003696,15]
[392264929,1761292240884,-500.0,0.0003696,15]
[392264930,1761292240896,-214.79205578,0.0003696,15]
[392264931,1761292240909,-4063.45378518,0.00037067,2]
[392264932,1761292240921,-5741.68,0.00037067,2]
[392264934,1761292240934,-150.99,0.00037067,30]
[392264935,1761292240947,-999.99,0.00037067,2]
[392264936,1761292240959,-343.75,0.00037067,2]
[392264937,1761292240971,-463.03,0.00037067,2]
[392264938,1761292240983,-9999.99,0.00037067,2]
[392264939,1761292240995,-306.84,0.00037128,2]
[392264940,1761292241007,-166.66,0.00037273,30]
[392264941,1761292241019,-273.85,0.0003729,14]
[392264942,1761292241031,-150.0,0.00037548,7]
[392264943,1761292241043,-273.85,0.00037564,14]
[392264944,1761292241055,-273.87,0.00037838,14]
[392264945,1761292241068,-207.4,0.0003785,2]
[392264946,1761292241079,-200.0,0.0003785,2]
[392264947,1761292241091,-200.0,0.0003785,2]
[392264948,1761292241103,-500.0,0.00037873,5]
[392264949,1761292241116,-500.0,0.00037873,2]
[392264950,1761292241129,-489.75908399,0.00037873,2]
[392264951,1761292241142,-166.66,0.00038011,30]
[392264952,1761292241154,-473.90737296,0.0003807,2]
[392264953,1761292241166,-150.0,0.00038135,7]
[392264954,1761292241177,-33032.8404274,0.00038211,2]
[392264955,1761292241188,-8008.51638801,0.00038231,2]
[392264956,1761292241199,-150.0,0.00038331,7]
[392264957,1761292241210,-150.0,0.00038331,7]
[392264958,1761292241223,-693.28984318,0.00038361,2]
[392264959,1761292241236,-200.0,0.00038398,2]
[392264960,1761292241248,-200.0,0.00038398,2]
[392264961,1761292241261,-503.0663356,0.00038421,2]
[392264962,1761292241272,-500.0,0.00038514,2]
[392264963,1761292241283,-159.94697005,0.00038514,2]
[392264964,1761292241294,-322.6107,0.00038514,2]
[392264965,1761292241306,-153.5903605,0.00038514,2]
[392264966,1761292241319,-452.38747311,0.00038514,2]
[392264967,1761292241332,-574.12855637,0.00038514,2]
[392264968,1761292241344,-277.35679052,0.00038514,2]
[392264969,1761292241356,-306.84,0.00038521,2]
[392264970,1761292241367,-8008.516388,0.00038629,2]
[392264971,1761292241378,-500.0,0.00038668,30]
[392264972,1761292241390,-150.0,0.00038722,7]
[392264973,1761292241401,-166.66,0.00038749,30]
[392264974,1761292241415,-1425.0,0.00038762,2]
[392264975,1761292241428,-693.28984318,0.0003886,2]
[392264976,1761292241439,-237.38364,0.0003888,2]
[392264977,1761292241450,-693.28984319,0.0003894,2]
[392264978,1761292241462,-200.0,0.00038946,2]
[392264979,1761292241474,-200.0,0.00038946,2]
[392264980,1761292241486,-500.0,0.00038989,30]
[392264981,1761292241498,-500.0,0.00038989,30]
[392264982,1761292241507,-8665.43442683,0.0003899,2]
[392264983,1761292241516,-150.0,0.00039015,7]
[392264984,1761292241527,-150.0,0.00039015,7]
[392264985,1761292241538,-150.0,0.00039015,7]
[392264986,1761292241547,-8008.516388,0.00039028,2]
[392264987,1761292241557,-1425.0,0.00039055,2]
[392264988,1761292241566,-595.37131296,0.00039062,2]
[392264989,1761292241576,-237.38365,0.0003908,2]
[392264990,1761292242010,-150.0,0.00039113,7]
[392264991,1761292242041,-6999.29176729,0.00039147,30]
[392264992,1761292242066,-500.0,0.0003915,30]
[392264993,1761292242080,-547.6,0.00039151,2]
[392264994,1761292242091,-547.6,0.00039151,2]
[392264995,1761292242100,-473.90737296,0.00039172,2]
[392264996,1761292242110,-500.0,0.00039175,30]
[392264997,1761292242119,-500.0,0.00039184,30]
[392264998,1761292242128,-500.0,0.00039194,30]
[392264999,1761292242138,-150.0,0.00039204,7]
[392265000,1761292242147,-1425.0,0.00039251,2]
[392265001,1761292242156,-237.38364,0.00039272,2]
[392265002,1761292242166,-1949.84061,0.00039272,2]
[392265003,1761292242175,-256.13,0.00039288,2]
[392265004,1761292242184,-150.0,0.00039308,7]
[392265005,1761292242194,-237.38364,0.0003933,2]
[392265006,1761292242203,-176.3,0.00039342,2]
[392265007,1761292242214,-285.29577522,0.0003938,2]
[392265008,1761292242223,-1265.19350034,0.0003938,7]
[392265009,1761292242233,-151.0,0.0003938,7]
[392265010,1761292242242,-1000.0,0.00039391,7]
[392265011,1761292242252,-168.0,0.0003942,2]
[392265012,1761292242262,-8008.516388,0.00039426,2]
[392265013,1761292242271,-500.0,0.00039435,30]
[392265014,1761292242280,-500.0,0.00039435,30]
[392265015,1761292242290,-500.0,0.00039435,30]
[392265016,1761292242299,-1425.0,0.00039443,2]
[392265017,1761292242308,-794.0,0.00039452,120]
[392265018,1761292242318,-500.0,0.00039454,2]
[392265019,1761292242327,-500.0,0.00039483,30]
[392265020,1761292242337,-191.0,0.00039487,2]
[392265021,1761292242347,-794.0,0.00039488,7]
[392265022,1761292242357,-200.0,0.00039494,2]
[392265023,1761292242367,-200.0,0.00039494,2]
[392265024,1761292242376,-300.0,0.000395,2]
[392265025,1761292242387,-344.75363738,0.000395,2]
[392265026,1761292242399,-152.0,0.00039503,4]
[392265027,1761292242409,-794.0,0.00039521,2]
[392265028,1761292242419,-1425.0,0.00039575,2]
[392265029,1761292242428,-237.38365,0.0003958,2]
[392265030,1761292242438,-617.40005154,0.0003961,2]
[392265031,1761292242448,-864.0,0.00039616,2]
[392265032,1761292242457,-391.86,0.00039654,2]
[392265033,1761292242467,-864.0,0.00039671,2]
[392265034,1761292242477,-354.0,0.00039684,7]
[392265035,1761292242489,-500.0,0.00039699,30]
[392265036,1761292242499,-500.0,0.00039699,7]
[392265037,1761292242509,-500.0,0.00039699,30]
[392265038,1761292242518,-500.0,0.00039699,30]
[392265039,1761292242527,-305.0,0.00039699,30]
[392265040,1761292242537,-794.0,0.00039699,2]
[392265041,1761292242547,-150.0,0.000397,7]
[392265042,1761292242557,-150.0,0.000397,7]
[392265043,1761292242567,-14704.1788019,0.000397,2]
[392265044,1761292242576,-352.0,0.000397,2]
[392265045,1761292242586,-794.0,0.00039717,7]
[392265046,1761292242597,-662.53086886,0.00039724,12]
[392265047,1761292242606,-864.0,0.00039726,2]
[392265048,1761292242620,-191.0,0.00039733,2]
[392265049,1761292242630,-5000.0,0.00039733,2]
[392265050,1761292242639,-300.0,0.00039762,7]
[392265051,1761292242649,-500.0,0.00039773,5]
[392265052,1761292242659,-794.0,0.00039774,7]
[392265053,1761292242669,-864.0,0.0003978,2]
[392265054,1761292242679,-71519.3872539,0.0003979,3]
[392265055,1761292242691,-152.06004125,0.00039795,7]
[392265056,1761292242701,-269.25,0.00039795,14]
[392265057,1761292242710,-500.0,0.00039799,7]
[392265058,1761292242720,-513.21396026,0.00039799,30]
[392265059,1761292242729,-500.0,0.00039799,30]
[392265060,1761292242738,-192905.9012,0.000398,2]
[392265061,1761292242748,-700.0,0.000398,14]